Cogmind - Beta 12 *** ADVENTURER MODE // 2024.01.04 @ 18:53:35 Player: martinuzz Result: Destroyed self with Rocket Launcher Performance ------------- Evolutions (0) 0 Regions Visited (4) 800 Robots Destroyed (43) 215 Value Destroyed (669) 669 Prototype IDs (27) 540 Alien Tech Used (0) 0 Bonus (291) 291 TOTAL SCORE: 2515 Bonus ------- Follower Combat Kills 7 Aligned with FarCom 300 Friendly Fire -16 Cogmind --------- Core Integrity 0/250 Matter 267/300 Energy 88/100 System Corruption 1% Temperature Cool (0) Movement Core (350) Ox6 Location -9/Mines Parts ------- > --- POWER (1) -------- (None) > --- PROPULSION (2) --- (None) > --- UTILITY (2) ------ Improved Heat Sink Large Storage Unit > --- WEAPON (2) ------- (None) > --- INVENTORY (15) --- Light Fission Core Light Fission Core Light Treads Light Treads Light Treads Huge Storage Unit Sensor Array Authchip [R/Combat] PSU Rigger Improved Medium Laser Improved Medium Laser Heavy Assault Rifle Heavy Assault Rifle Peak State ------------ > --- POWER ------------ Light Ion Engine > --- PROPULSION ------- Light Treads Light Treads > --- UTILITY ---------- Large Storage Unit PSU Rigger > --- WEAPON ----------- Beamcaster Heavy Assault Rifle > --- INVENTORY -------- Light Fission Core Light Fission Core Light Treads Light Treads Light Treads Light Treads Improved Heat Sink Huge Storage Unit Sensor Array Authchip [R/Combat] Improved Medium Laser Improved Medium Laser Heavy Assault Rifle Heavy Assault Rifle Rocket Launcher [Rating: 22] Favorites ----------- Power Light Ion Engine Engine Light Ion Engine Propulsion Light Treads Treads Light Treads Utility Large Storage Unit Device PSU Rigger Storage Large Storage Unit Processor Signal Interpreter Weapon Heavy Assault Rifle Energy Gun Improved Medium Laser Ballistic Gun Heavy Assault Rifle Launcher Rocket Launcher Build | -11 -10 -10 -10 -9 ------- Run | Jun Mat Min Exi Min Slots Evolved . | . . . . . Power . | . . . . . Propulsion . | . . . . . Utility . | . . . . . Weapon . | . . . . . Parts Attached 24 | 5 11 1 2 5 Power 2 | . 1 1 . . Engine 2 | . 1 1 . . Core . | . . . . . Reactor . | . . . . . Propulsion 6 | 2 3 . . 1 Treads 6 | 2 3 . . 1 Leg . | . . . . . Wheel . | . . . . . Hover . | . . . . . Flight . | . . . . . Utility 5 | 1 2 . 1 1 Device 2 | . . . 1 1 Storage 2 | 1 1 . . . Processor 1 | . 1 . . . Hackware . | . . . . . Protection . | . . . . . Artifact . | . . . . . Weapon 11 | 2 5 . 1 3 Energy Gun 6 | 1 2 . 1 2 Energy Cannon . | . . . . . Ballistic Gun 4 | 1 3 . . . Ballistic Cannon . | . . . . . Launcher 1 | . . . . 1 Special Weapon . | . . . . . Impact Weapon . | . . . . . Slashing Weapon . | . . . . . Piercing Weapon . | . . . . . Special Melee Weapon . | . . . . . Unidentified Prototypes 2 | . 1 . 1 . Parts Lost 7 | . . . . 7 Power 1 | . . . . 1 Propulsion 3 | . . . . 3 Utility . | . . . . . Weapon 3 | . . . . 3 Highest Loss Streak 7 | . . . . 7 To Critical Strikes . | . . . . . Average Slot Usage (%) 98 | . 96 100 100 98 Engine 13 | . 13 14 14 13 Treads 27 | . 27 28 28 27 Device 2 | . . . 2 14 Storage 14 | . 14 14 14 14 Processor 10 | . 11 14 11 . Energy Gun 13 | . 14 14 14 13 Ballistic Gun 13 | . 14 14 14 13 Naked Turns . | . . . . . Heaviest Build 33 | 7 29 29 29 33 Greatest Support 40 | 40 40 40 40 40 Greatest Overweight (x) . | . . . . . Average Overweight (x) . | . . . . . Largest Inventory Capacity 15 | 8 15 15 15 15 Average Capacity 14 | 7 14 15 15 15 Most Carried 15 | 5 15 15 15 15 Average Carried 12 | 4 10 14 14 14 Final Capacity 15 | 8 15 15 15 15 Final Carried 15 | 5 15 15 15 13 Class Distribution -------------------- 100% | Mutant Dominant Class ---------------- Mutant | -10/Materials Mutant | -10/Mines Mutant | -10/Exiles Mutant | -9/Mines Resources | -11 -10 -10 -10 -9 ----------- Run | Jun Mat Min Exi Min Matter Collected 646 | 262 197 55 . 132 Remotely . | . . . . . Salvage Created 1394 | 151 692 317 . 234 Parts 83 | 9 41 14 . 19 Haulers Intercepted 2 | . 2 . . . Recyclers Shooed 2 | . 1 1 . . Parts Field Recycled . | . . . . . Retrieved Matter . | . . . . . Parts Self-Destructed . | . . . . . Prevented . | . . . . . Kills | -11 -10 -10 -10 -9 ------- Run | Jun Mat Min Exi Min Combat Hostiles Destroyed 28 | . 14 5 . 9 Guns 28 | . 14 5 . 9 Classes Destroyed 7 | 2 4 . . 1 Tunneler 5 | 3 1 . . 1 Hauler 2 | . 2 . . . Recycler 6 | 1 1 3 . 1 Watcher 3 | . 3 . . . Swarmer 17 | . 6 5 . 6 Grunt 10 | . 8 . . 2 Assembled 1 | . . . . 1 Best Kill Streak 5 | 1 4 3 . 5 Combat Bots Only 4 | . 3 3 . 4 Max Kills in Single Turn 2 | 1 2 1 . 1 Gunslinging 1 | . 1 . . . Exploded . | . . . . . Melee . | . . . . . Uniques/NPCs Destroyed . | . . . . . Combat | -11 -10 -10 -10 -9 -------- Run | Jun Mat Min Exi Min Damage Taken 1318 | . 335 32 . 951 Core 266 | . 49 7 . 210 Absorbed by Shields . | . . . . . Regen/Repaired (Parts) 49 | . 49 . . . Core Remaining (%) 100 | 100 . . . . Volleys Fired 101 | 12 53 10 . 26 Largest 2 | 2 2 2 . 2 Hottest 98 | 60 79 79 . 98 Shots Fired 200 | 24 106 21 . 49 Gun 197 | 24 106 21 . 46 Cannon . | . . . . . Launcher 3 | . . . . 3 Special . | . . . . . Kinetic 99 | 12 53 11 . 23 Thermal 98 | 12 53 10 . 23 Explosive 3 | . . . . 3 Electromagnetic . | . . . . . Robot Hit Streak 23 | 15 23 14 . 11 Robot Miss Streak 3 | 1 2 1 . 3 Penetration Max . | . . . . . Secondary Targets 3 | . 2 1 . . Max Gunslinging Chain 1 | . 1 1 . . Shots Hit Robots 150 | 19 82 13 . 36 Core Hits 62 | 6 33 8 . 15 Critical Kills . | . . . . . Critical Parts Destroyed . | . . . . . Critical Strikes 7 | . 5 . . 2 Burn 7 | . 5 . . 2 Melee Attacks . | . . . . . Impact . | . . . . . Slashing . | . . . . . Piercing . | . . . . . Sneak Attacks . | . . . . . Combat Hostiles . | . . . . . Follow-up Attacks . | . . . . . Damage Inflicted 2080 | 205 1035 226 . 614 Guns 2009 | 205 1035 226 . 543 Cannons . | . . . . . Explosions 60 | . . . . 60 Melee . | . . . . . Ramming 11 | . . . . 11 Kinetic 773 | 72 380 73 . 248 Thermal 1236 | 133 655 153 . 295 Explosive 60 | . . . . 60 Electromagnetic . | . . . . . Impact . | . . . . . Slashing . | . . . . . Piercing . | . . . . . Highest Corruption 1 | . 1 1 1 1 Average Corruption 1 | . 1 1 1 1 Corruption Purged . | . . . . . Corruption Blocked . | . . . . . Effects 26 | . 6 10 7 3 Message Errors 9 | . 2 5 1 1 Matter Fused 6 | . 1 2 3 . Heat Flow Errors 3 | . . 1 1 1 Energy Discharges 2 | . 2 . . . Data Loss (minor) 3 | . 1 1 1 . Misfires 2 | . . 1 . 1 Alerts 1 | . . . 1 . Overload Shots . | . . . . . Overflow Damage 57 | . . . . 57 Projectiles . | . . . . . Explosions 57 | . . . . 57 Melee . | . . . . . Knockbacks . | . . . . . Impact . | . . . . . Kinetic . | . . . . . Secondary . | . . . . . Self-Inflicted Damage 114 | . . . . 114 Shots 3 | . . . . 3 Rammed 1 | . . . . 1 Targets Rammed 1 | . . . . 1 Kicked . | . . . . . Crushed . | . . . . . Highest Temperature 288 | 10 288 96 95 244 Average Temperature 66 | 7 76 25 48 80 Received Heat Transfer 217 | . 144 . . 73 Effects 3 | . 3 . . . Interference 3 | . 3 . . . Siege Activations . | . . . . . Robots Corrupted . | . . . . . Combat Hostiles . | . . . . . Parts Fried . | . . . . . Impact Corruptions . | . . . . . Robots Melted . | . . . . . Combat Hostiles . | . . . . . Parts Melted 6 | . 5 1 . . Heat Transferred 3228 | 300 1818 333 . 777 Parts Sabotaged . | . . . . . Parts Stolen . | . . . . . Parts Stripped . | . . . . . Power Chain Reactions . | . . . . . Missiles Intercepted . | . . . . . Alert | -11 -10 -10 -10 -9 ------- Run | Jun Mat Min Exi Min Peak Influence 245 | 20 245 113 . 205 Initial 23 | . 11 23 . . Average 61 | 9 65 45 . 94 Maximum Alert Level 1 | . 1 . . 1 Low Security (%) 92 | 100 89 100 . 89 Level 1 7 | . 10 . . 10 Level 2 . | . . . . . Level 3 . | . . . . . Level 4 . | . . . . . Level 5 . | . . . . . High Security . | . . . . . Max Security . | . . . . . Squads Dispatched 3 | . 3 . . . Investigation 3 | . 3 . . . Extermination . | . . . . . Reinforcement . | . . . . . Assault . | . . . . . Garrison . | . . . . . Intercept . | . . . . . Searches Triggered . | . . . . . Construction Impeded . | . . . . . Haulers Reinforced . | . . . . . Active Scanning Responses . | . . . . . Cargo Convoy Interrupts . | . . . . . Stealth | -11 -10 -10 -10 -9 --------- Run | Jun Mat Min Exi Min Distress Signals 1 | . 1 . . . Communications Jammed . | . . . . . Distress Signals . | . . . . . Times Spotted 58 | . 19 7 . 32 Peak Tracking Total 13 | . 5 3 . 13 Tactical Retreats 2 | . 1 . . 1 Traps | -11 -10 -10 -10 -9 ------- Run | Jun Mat Min Exi Min Traps Triggered 3 | . 3 . . . Indirectly . | . . . . . Trap Hack Attempts . | . . . . . Triggered . | . . . . . Disarmed 6 | . 6 . . . Reprogrammed . | . . . . . Reused . | . . . . . Traps Extracted . | . . . . . Installed . | . . . . . Triggered . | . . . . . Machines | -11 -10 -10 -10 -9 ---------- Run | Jun Mat Min Exi Min Machines Disabled 1 | . . 1 . . Max in Single Turn 1 | . . 1 . . Machines Repaired . | . . . . . Machines Sabotaged . | . . . . . Overloaded Fab Kills . | . . . . . Hacking | -11 -10 -10 -10 -9 --------- Run | Jun Mat Min Exi Min Machines Accessed 12 | . 8 2 2 . Terminals 9 | . 7 2 . . Fabricators . | . . . . . Repair Stations 1 | . 1 . . . Recycling Units . | . . . . . Scanalyzers . | . . . . . Garrison Access . | . . . . . Total Hacks 62 | . 31 7 24 . Successful 50 | . 21 5 24 . Failed 12 | . 10 2 . . Catastrophic 1 | . 1 . . . Database Lockouts . | . . . . . Manual 1 | . . . 1 . Terminals 32 | . 25 7 . . Fabricators . | . . . . . Repair Stations 6 | . 6 . . . Recycling Units . | . . . . . Scanalyzers . | . . . . . Garrison Access . | . . . . . Terminal Hacks 46 | . 17 5 24 . Record 27 | . 2 2 23 . Prototype ID Bank 2 | . 2 . . . Emergency Access Points 1 | . 1 . . . Alert Level 2 | . 2 . . . Locate Traps 2 | . 2 . . . Disarm Traps 1 | . 1 . . . Dispatch Records 2 | . 1 1 . . Maintenance Status 1 | . 1 . . . Transport Status 2 | . 2 . . . Hauler Manifests 2 | . 2 . . . Zone Layout 3 | . 1 2 . . EX-Prototype ID Bank 1 | . . . 1 . Fabricator Hacks . | . . . . . Repair Station Hacks 4 | . 4 . . . Scan Component 2 | . 2 . . . Repair 2 | . 2 . . . Recycling Unit Hacks . | . . . . . Scanalyzer . | . . . . . Garrison Access Hacks . | . . . . . Unauthorized Hacks . | . . . . . Terminals . | . . . . . Fabricators . | . . . . . Repair Stations . | . . . . . Recycling Units . | . . . . . Scanalyzers . | . . . . . Garrison Access . | . . . . . Data Cores Recovered . | . . . . . Used . | . . . . . Hacking Detections 8 | . 7 1 . . Full Trace Events 3 | . 3 . . . Feedback Events 1 | . 1 . . . Corruption 1 | . 1 . . . Feedback Blocked . | . . . . . Robot Schematics Acquired . | . . . . . Robots Built . | . . . . . Authchips . | . . . . . Time . | . . . . . Total Robot Build Rating . | . . . . . Part Schematics Acquired . | . . . . . Parts Built . | . . . . . Authchips . | . . . . . Time . | . . . . . Total Part Build Rating . | . . . . . Parts Repaired 2 | . 2 . . . Time 52 | . 52 . . . Parts Recycled . | . . . . . Recycled Matter . | . . . . . Retrieved Matter . | . . . . . Retrieved Components . | . . . . . Parts Scanalyzed . | . . . . . Part Schematics Acquired . | . . . . . Parts Damaged . | . . . . . Bothacking | -11 -10 -10 -10 -9 ------------ Run | Jun Mat Min Exi Min Used RIF Installer . | . . . . . Robots Hacked . | . . . . . Non-combat . | . . . . . Combat . | . . . . . Robot Hacks Applied . | . . . . . Relay Couplers Released . | . . . . . Fabnet Peak Effective % . | . . . . . Robots Rewired . | . . . . . Allies Hacked . | . . . . . Hacks Repelled . | . . . . . Allies | -11 -10 -10 -10 -9 -------- Run | Jun Mat Min Exi Min Total Allies 2 | . . 2 . . Largest Group 2 | . . 2 2 . Highest-Rated Group 41 | . . 41 41 . Highest-Rated Ally 31 | . . 31 31 . Total Orders . | . . . . . Ally Attacks 5 | . . 5 . . Total Damage 81 | . . 81 . . Kills 1 | . . 1 . . Allies Corrupted . | . . . . . Allies Melted . | . . . . . Intel | -11 -10 -10 -10 -9 ------- Run | Jun Mat Min Exi Min Robot Analysis Total . | . . . . . Derelict Logs Recovered 2 | . . 2 . . Drone Launches . | . . . . . Drone Recoveries . | . . . . . Exploration | -11 -10 -10 -10 -9 ------------- Run | Jun Mat Min Exi Min Turns Passed 4281 | 166 1704 955 981 475 Spaces Moved 2390 | 84 901 564 601 240 Core 14 | 14 . . . . Treads 2376 | 70 901 564 601 240 Legs . | . . . . . Wheels . | . . . . . Hover . | . . . . . Flight . | . . . . . Fastest Speed 50 | 50 160 160 160 160 Average Speed 159 | 141 160 160 160 160 Slowest Speed 160 | 160 160 160 160 160 Overloaded Moves . | . . . . . Propulsion Burnouts . | . . . . . Robots Hopped . | . . . . . Cave-ins Triggered . | . . . . . Exploration Rate (%) 71 | 5 97 100 89 65 Regions Visited 4 Branch Regions 3 Pre-discovered Areas 2 | . . 1 1 . Known Exits Taken 3 | . 1 1 1 . Unknown Exits Taken 1 | 1 . . . . Scrap Searched 3 | . . 1 . 2 Spaces Dug . | . . . . . Terrain Destroyed . | . . . . . Melee . | . . . . . Projectile . | . . . . . AOE . | . . . . . Terrain Rammed . | . . . . . Walls Destroyed . | . . . . . Machines Disabled . | . . . . . Actions | -11 -10 -10 -10 -9 --------- Run | Jun Mat Min Exi Min Total 2679 | 110 1067 598 621 283 Wait 108 | . 69 18 14 7 Move 2386 | 83 900 563 600 240 Hop . | . . . . . Pick Up 42 | 10 24 3 3 2 Fast Attach . | . . . . . Attach 10 | 5 3 . . 2 Detach . | . . . . . Swap 14 | . 8 1 2 3 Drop 17 | . 10 3 2 2 Fire 101 | 12 53 10 . 26 Melee . | . . . . . Ram . | . . . . . Kick . | . . . . . Crush 1 | . . . . 1 Escape Stasis . | . . . . . Rewire . | . . . . . Trap . | . . . . . Miscellaneous . | . . . . . Route ------- -11/Junkyard -10/Materials (discovered 5 exits: *Mat x3 / *Min x2) -10/Mines (discovered 3 exits: *Mat x2 / *Exi) -10/Exiles -9/Mines (discovered 2 exits: [*Mat x2]) History --------- Turn | Location | Event 9 | -11/Junkyard | Discovered new exit (range 15) 167 | -11/Junkyard | Entered Materials 314 | -10/Materials | Build established: Mutant 357 | -10/Materials | Discovered new exit (range 13) 535 | -10/Materials | Discovered new exit (range 5) 540 | -10/Materials | Identified exit to Mines 624 | -10/Materials | Discovered new exit (range 16) 662 | -10/Materials | Identified exit to Materials 1001 | -10/Materials | Discovered exit to Mines (range 14) 1147 | -10/Materials | Discovered exit to Materials (range 16) 1710 | -10/Materials | Repaired Sensor Array 1737 | -10/Materials | Repaired Lgt. Treads 1871 | -10/Materials | Entered Mines 1879 | -10/Mines | Identified exit to Exiles 1930 | -10/Mines | Discovered exit to Materials (range 10) 2043 | -10/Mines | Deemed a non-threat by the Exiles lab entrance 2416 | -10/Mines | Discovered exit to Materials (range 11) 2432 | -10/Mines | Joined a pair of Derelicts in attacking an 0b10 outpost 2527 | -10/Mines | Learned location of Storage (-9) 2826 | -10/Mines | Entered Exiles 2826 | -10/Exiles | Accompanied by 2 allies 2856 | -10/Exiles | Led the pair of lost Derelicts to a safe place 2869 | -10/Exiles | Discovered new exit (range 15) 2890 | -10/Exiles | Identified exit to Mines 2930 | -10/Exiles | Met 8R-AWN 2957 | -10/Exiles | Met EX-HEX 3053 | -10/Exiles | Met EX-DEC 3083 | -10/Exiles | Visited The Gauntlet 3312 | -10/Exiles | Met EX-BIN 3330 | -10/Exiles | Aligned with FarCom system 3332 | -10/Exiles | Given EX-Vault access code 3447 | -10/Exiles | Learned location of Zion (-7) 3616 | -10/Exiles | Opened EX-Vault 3627 | -10/Exiles | Found Prototype Device 3628 | -10/Exiles | Identified PSU Rigger 3679 | -10/Exiles | Warned to stay clear of 0b10 Research branches 3807 | -10/Exiles | Left Exiles lab with PSU Rigger 3807 | -10/Exiles | Entered Mines 3839 | -9/Mines | Met a Derelict bent on vengeance 3883 | -9/Mines | Discovered new exit (range 6) 4059 | -9/Mines | Discovered new exit (range 12) 4232 | -9/Mines | Assembled infested the area 4260 | -9/Mines | Core integrity fell below 50% 4274 | -9/Mines | Core integrity fell below 20% 4282 | -9/Mines | Destroyed self with Rocket Launcher Last Messages --------------- 04269_ Lgt. Ion Engine destroyed. 04269_ T-07 Excavator is excavating. 04270_ The unstable cave ceiling collapses. 04270_ Hvy. Assault Rifle destroyed. 04271_ The unstable cave ceiling collapses. 04273_ Lgt. Treads destroyed. 04273_ as-35567 destroyed. 04273_ T-07 Excavator is excavating. 04275_ Beamcaster destroyed. 04275_ D-53 Grenadier destroyed. 04276_ The unstable cave ceiling collapses. 04278_ Lgt. Treads destroyed. 04278_ Destroyed Lgt. Treads. 04278_ T-07 Excavator is excavating. 04279_ as-42115 destroyed. 04280_ The unstable cave ceiling collapses. 04280_ Destroyed Shock Absorption System. 04281_ The unstable cave ceiling collapses. 04282_ Rocket Launcher destroyed. 04282_ Destroyed Rocket Launcher. Map ----- +----------------------------------------------------+ | ??????????# #### ##???# < ##????????????? | | ??????????# #???# ##?????????????? | | ??????????## ! #???## ##??????????????? | | ???????????### [#???## ##??????????????? | | ?????????????## ##???# #??????????????? | | ??????????????# #????# #??????????????? | | ?????????????## ##???## #??????????????? | | ????????????## ####???## #???????????????? | | ???????????## ##??????# ##???????????????? | | ???????????#! ##??????# ##????????????????? | | ???????????# ####???# ##?????????????????? | | ???????##### ##### #??????????????????? | | ???? *% %! #??????????????????? | | ?? %= [ #####??????????????? | | ??# ###### ####### ##?????????????? | | ??? ???????### ###?# ##????????????? | | ??????????????## # ## #????????????? | | ???????????????# # ##???????????? | | ???????????????## # ##??????????? | | ????????????????## #??????????? | | ????????????????## # ####???????? | | ???????????????## # #####???? | | ???????????????# # #???? | | ???????????????# #???? | | ???????????????# # """#???? | | ???????????????# # @ """#???? | | ???????????????## d a a """#???? | | ????????????????## a% #???? | | ?????????????????## # ##???? | | ??????????????????# #####?#????? | | ????????????????? # ###??????????? | | ???????????????# #####????????????? | | ???????????????# # ##### #????????????????? | | ???????????????# ????#### #????????????????? | | ??????????????? ???????# #????????????????? | | ??????????????# ???????# #????????????????? | | ??????????????## ??????? ????????????????? | | ???????????????# # ???????? ????????????????? | | ???????????????# ##????????t #????????????????? | | ??????????????? ??????????###????????????????? | | ??????????????????????????????????????????????? | | ??????????????????????????????????????????????? | | ??????????????????????????????????????????????? | | ??????????????????????????????????????????????? | | ??????????????????????????????????????????????? | | ??????????????????????????????????????????????? | | ??????????????????????????????????????????????? | | ??????????????????????????????????????????????? | | ??????????????????????????????????????????????? | | | +----------------------------------------------------+ Best States ------------- Heat Dissipation 39 Energy Generation 10 Energy Capacity 125 Matter Stores 300 Matter Capacity 300 Sight Range 16 Terrain Scan Density 10 Resistance: KI 20 Resistance: TH 20 Resistance: EX 20 Resistance: EM 20 Resistance: I 20 Resistance: S 20 Resistance: P 20 Evasion (%) 50 Recoil Reduction 2 Offensive Hacking 10 Authchip Count 1 Item Schematics ----------------- None Robot Schematics ------------------ None Fabricated ------------ Nothing Alien Tech Used ----------------- None Achievements -------------- None Challenges ------------ None Game ------ Seed 11235813 Manual? 1 Play Time 00:43:27 Cumulative 26.1 hours Start 2024.01.04 @ 17:56:30 End 2024.01.04 @ 18:53:35 Sessions 1 Manual Loads 0 Difficulty Adventurer Special Mode None Game No. 11 Rogue 0 Adventurer 11 Explorer 0 Win Type - Total 0 Types 0/0/0/0/0/0/0/0/0 Lore% 19 Gallery% 24 Achievement% 24 Wizard Run 0 Options --------- ASCII 0 Keyboard 0 Movement Mouse Keybinds 0 Fullscreen 1 Font 18/TerminusBold Map View 76x50 Tactical HUD 1 Map Filters NONE Filters NONE Steam 1 RUN: b684f4bf-2ee3-4f54-b70d-3138d9a56a94